bitfinex-derivatives/quotes_SOLF0:USTF0_20240902
["timestamp","ask_amount","ask_price","bid_price","bid_amount"]
[1725270618900,3.8334,130.44,130.39,25.86]
[1725270619108,4.14150529,130.49,130.39,25.86]
[1725270619597,0.05915033,130.45,130.43,0.05491661]
[1725270620203,26.81505867,130.48,130.35,1.3819]
[1725270620506,0.95505867,130.47,130.35,1.3819]
[1725270620808,1.95505867,130.47,130.36,25.86]
[1725270621002,4.14150529,130.49,130.36,25.86]
[1725270621308,4.14150529,130.49,130.35,1.3819]
[1725270621309,0.05672552,130.44,130.41,0.05290335]
[1725270621510,0.05672552,130.44,130.41,0.05014531]
[1725270622904,0.05672552,130.44,130.41,1.41794531]
[1725270623305,0.05672552,130.44,130.41,27.27794531]
[1725270623708,0.05672552,130.44,130.42,3.8337]
[1725270624208,0.05672552,130.44,130.43,3.8336]
[1725270624508,3.8313,130.51,130.43,25.86]
[1725270624702,3.88851088,130.53,130.46,3.8327]
[1725270624907,25.86,130.58,130.46,3.8327]
[1725270625107,25.86,130.56,130.43,25.86]
[1725270625315,2.55405105,130.55,130.43,25.86]
[1725270625517,2.55405105,130.55,130.48,0.04847165]
[1725270625809,0.05255887,130.51,130.48,0.04847165]
[1725270626214,3.88385887,130.51,130.48,0.04847165]
[1725270626608,0.05255887,130.51,130.48,0.04847165]
[1725270626809,3.8316,130.5,130.48,0.04847165]
[1725270627105,0.05255887,130.51,130.48,0.04847165]
[1725270630104,0.05255887,130.51,130.48,25.90847165]
[1725270630610,0.05255887,130.51,130.48,29.74037165]
[1725270630816,25.86,130.61,130.48,29.74037165]
[1725270630817,7.69,130.68,130.5,25.86]
[1725270631010,3.827,130.66,130.56,3.8296]
[1725270631207,1.4253,130.7,130.59,25.86]
[1725270631416,0.95325051,130.69,130.59,25.86]
[1725270631613,4.77945051,130.69,130.59,25.86]
[1725270631816,3.77277599,130.68,130.59,25.86]
[1725270632019,1.4253,130.7,130.57,1.4507]
[1725270632313,25.86,130.69,130.57,1.4507]
[1725270632507,1.4253,130.7,130.57,1.4507]
[1725270632508,5.20266946,130.7,130.58,25.86]
[1725270632708,0.2557,130.68,130.57,1.4507]
[1725270632908,26.1157,130.68,130.57,1.4507]
[1725270633113,0.2557,130.68,130.58,25.86]
[1725270633308,1.0,130.69,130.58,25.86]
[1725270633512,27.1157,130.69,130.56,25.86]
[1725270633710,0.95303118,130.68,130.56,25.86]
[1725270633917,0.05201735,130.65,130.58,25.86]
[1725270634116,0.05201735,130.65,130.61,0.05004832]
[1725270634715,1.45541735,130.65,130.61,0.05004832]
[1725270635018,1.45541735,130.65,130.53,25.86]
[1725270635222,0.05201735,130.65,130.58,25.86]
[1725270635718,3.7631089,130.66,130.58,25.86]
[1725270635907,1.657,130.71,130.58,25.86]
[1725270636113,5.52695883,130.71,130.58,25.86]
[1725270636312,0.05326763,130.63,130.61,0.05316632]
[1725270636513,3.91132009,130.62,130.61,0.05316632]
[1725270636716,0.05326763,130.63,130.61,0.05316632]
[1725270636917,25.86,130.67,130.55,25.86]
[1725270637317,0.05482253,130.63,130.55,25.86]
[1725270637527,0.05482253,130.63,130.61,0.0517871]
[1725270637528,3.87307978,130.63,130.61,0.0517871]
[1725270637719,25.86,130.67,130.55,25.86]
[1725270637921,25.86,130.69,130.58,25.86]
[1725270638221,5.54534161,130.71,130.61,0.05504377]
[1725270638222,0.05466598,130.63,130.61,0.05504377]
[1725270638927,3.78139832,130.64,130.55,25.86]
[1725270639120,0.05800055,130.63,130.61,0.05133783]
[1725270639322,3.79611942,130.63,130.61,0.05133783]
[1725270639518,25.86,130.67,130.55,25.86]
[1725270639916,0.04933885,130.63,130.61,0.0585984]
[1725270640322,0.04933885,130.63,130.57,25.86]
[1725270640627,0.04933885,130.63,130.5,3.81280464]
[1725270640628,33.55,130.68,130.5,3.81280464]
[1725270640814,1.4799,130.7,130.61,0.0578819]
[1725270640815,0.05198204,130.63,130.61,0.0578819]
[1725270641022,0.05198204,130.63,130.55,25.86]
[1725270641227,0.05198204,130.63,130.57,25.86]
[1725270641524,1.3473,130.69,130.6,25.86]
[1725270641722,5.1733,130.69,130.6,29.6886]
[1725270641917,3.88834161,130.71,130.62,25.86]
[1725270642121,250.86,130.73,130.61,0.05302293]
[1725270642328,3.8264,130.68,130.61,0.05302293]
[1725270642521,1.3473,130.7,130.62,25.86]
[1725270642721,1.4799,130.72,130.64,25.86]
[1725270643023,1.4799,130.72,130.65,1.3896]
[1725270643230,0.05390728,130.66,130.65,1.3896]
[1725270643735,3.88280877,130.66,130.65,0.04887181]
[1725270644026,25.86,130.7,130.65,0.04887181]
[1725270644229,2.341371,130.69,130.65,0.04887181]
[1725270644427,1.3885,130.69,130.65,0.04887181]
[1725270644727,0.05858929,130.67,130.65,0.04887181]
[1725270645122,7.61403212,130.66,130.65,0.04887181]
[1725270645326,0.05858929,130.67,130.54,3.75114077]
[1725270645527,1.01161291,130.67,130.54,25.86]
[1725270645830,1.3885,130.69,130.48,28.6458]
[1725270645831,25.86,130.65,130.55,2.7338]
[1725270646032,29.62339314,130.65,130.55,2.7338]
[1725270646523,25.86,130.63,130.36,7.671]
[1725270646725,1.3885,130.69,130.48,3.8321]
[1725270646726,25.86,130.6,130.48,3.8321]
[1725270647031,25.86,130.6,130.49,1.4748]
[1725270647220,3.83461006,130.6,130.5,3.8316]
[1725270647422,25.91730819,130.61,130.49,1.4748]
[1725270647628,0.05730819,130.61,130.5,25.86]
[1725270647825,3.8284,130.61,130.52,25.86]
[1725270648025,25.86,130.6,130.49,1.4748]
[1725270648230,25.86,130.6,130.54,0.05449639]
[1725270648231,0.05333826,130.57,130.54,0.05449639]
[1725270650632,3.8301,130.55,130.54,0.05449639]
[1725270651137,25.86,130.55,130.43,25.86]
[1725270651325,3.8314,130.51,130.43,25.86]
[1725270651521,25.86,130.55,130.43,25.86]
[1725270651723,1.4624,130.56,130.45,25.86]
[1725270651930,1.4624,130.56,130.41,2.7823]
[1725270651931,3.89931805,130.56,130.48,25.86]
[1725270652124,1.3788,130.58,130.45,25.86]
[1725270652322,1.3788,130.58,130.49,25.86]
[1725270652528,0.2563,130.62,130.51,25.86]
[1725270652731,0.04964759,130.53,130.51,25.90955806]
[1725270652928,0.04964759,130.53,130.51,0.04955806]
[1725270653332,3.91387633,130.56,130.5,1.3412]
[1725270653533,3.91387633,130.56,130.46,25.86]
[1725270653534,3.8307,130.53,130.46,25.86]
[1725270653837,27.3416,130.59,130.46,25.86]
[1725270653838,3.78285188,130.55,130.46,25.86]
[1725270654033,3.831,130.52,130.46,25.86]
[1725270654234,3.831,130.52,130.51,0.04873711]
[1725270654627,3.8313,130.51,130.46,25.86]
[1725270654826,0.04868111,130.53,130.5,0.05530287]
[1725270655129,0.04868111,130.53,130.42,1.3412]
[1725270655130,3.8326,130.47,130.42,1.3412]
[1725270655328,25.86,130.51,130.42,1.3412]
[1725270655529,0.30498111,130.53,130.42,1.3412]
[1725270655741,3.8325,130.47,130.42,1.3412]
[1725270655935,25.86,130.52,130.42,1.3412]
[1725270656236,3.8333,130.44,130.43,0.05864357]
[1725270656431,0.05037133,130.46,130.43,0.05864357]
[1725270657037,3.8333,130.44,130.43,0.05864357]
[1725270657433,3.8338,130.43,130.35,32.5838]
[1725270657835,3.8338,130.43,130.42,0.04915806]
[1725270658032,0.05542749,130.45,130.36,3.8356]
[1725270658335,5.1884,130.46,130.36,3.8356]
[1725270658529,0.05709534,130.42,130.41,0.0544823]
[1725270658725,1.3554,130.46,130.41,0.0544823]
[1725270658929,0.04901709,130.43,130.41,0.0544823]
[1725270662741,25.90901709,130.43,130.35,1.4766]
[1725270663032,1.4719,130.42,130.35,1.4766]
[1725270663440,1.4719,130.42,130.32,1.4188]
[1725270663441,2.9196,130.42,130.32,1.4188]
[1725270663646,0.2586,130.46,130.33,25.86]
[1725270663836,1.7063,130.46,130.38,0.05883222]
[1725270664137,0.05636466,130.41,130.32,1.4188]
[1725270664343,3.8347,130.4,130.33,3.8363]
[1725270664647,0.05501973,130.38,130.35,0.05450908]
[1725270664843,0.05501973,130.38,130.37,3.8354]
[1725270665045,1.4719,130.46,130.37,25.86]
[1725270665345,7.59401655,130.47,130.38,29.6948]
[1725270665541,25.86,130.45,130.39,1.3906]
[1725270665743,25.86,130.47,130.39,1.3906]
[1725270665946,1.4292,130.48,130.39,1.3906]
[1725270666345,3.88522326,130.47,130.39,1.3906]
[1725270666547,1.4292,130.48,130.4,25.86]
[1725270666844,0.05146675,130.45,130.43,25.86]
[1725270667044,3.8313,130.51,130.43,25.86]
[1725270667550,1.4612,130.53,130.46,3.8326]
[1725270667857,3.83636224,130.6,130.5,25.86]
[1725270668150,25.86,130.63,130.4,29.68064258]
[1725270668151,0.95400274,130.59,130.52,25.86]
[1725270668338,0.95361753,130.62,130.51,1.4599]
[1725270668536,1.4871,130.62,130.51,1.4599]
[1725270668741,3.8292,130.59,130.51,5.2912]
[1725270668936,1.4871,130.62,130.52,25.86]
[1725270669339,3.91189325,130.63,130.52,25.86]
[1725270669747,1.4612,130.64,130.55,25.86]
[1725270669943,5.2888,130.64,130.56,3.8297]
[1725270670246,0.05495041,130.56,130.54,30.95881978]
[1725270670553,3.8281,130.62,130.54,34.78891978]
[1725270670849,38.59,130.71,130.57,30.9]
[1725270671148,3.919963,130.67,130.59,30.9]
[1725270671347,3.919963,130.67,130.57,30.9]
[1725270671554,30.9,130.71,130.57,30.9]
[1725270671853,30.9,130.68,130.54,30.9]
[1725270672056,0.95283007,130.67,130.54,30.9]
[1725270672247,0.05425127,130.63,130.61,0.05761812]
[1725270673449,3.88205127,130.63,130.61,0.05761812]
[1725270674054,0.05425127,130.63,130.61,0.05761812]
[1725270676551,30.95425127,130.63,130.51,1.4599]
[1725270676748,0.95340591,130.62,130.51,1.4599]
[1725270676943,0.95340591,130.62,130.51,32.3599]
[1725270677160,3.88246554,130.62,130.54,30.9]
[1725270677358,3.828,130.63,130.55,3.8298]
[1725270677658,30.9,130.64,130.51,32.3599]
[1725270677954,3.8289,130.59,130.58,0.05191339]
[1725270678160,0.05281341,130.6,130.58,0.05191339]
[1725270678353,3.83803546,130.6,130.58,0.05191339]
[1725270678549,0.05281341,130.6,130.58,0.05191339]
[1725270678754,3.80206738,130.68,130.58,30.95191339]
[1725270678950,225.0,130.72,130.59,1.3646]
[1725270679156,3.8267,130.67,130.59,1.3646]
[1725270679357,30.9,130.68,130.59,1.3646]
[1725270679658,3.8275,130.64,130.59,1.3646]
[1725270679862,3.91769647,130.64,130.5,36.22133564]
[1725270680048,0.05468692,130.65,130.53,30.9]
[1725270680252,3.8282,130.62,130.54,3.8303]
[1725270680662,3.87557894,130.65,130.54,3.8303]
[1725270680960,9.1478,130.67,130.53,30.9]
[1725270681158,0.05825273,130.61,130.58,0.05582877]
[1725270681458,0.95326125,130.65,130.51,1.3541]
[1725270681659,0.05267715,130.61,130.58,0.05527489]
[1725270681862,0.05267715,130.61,130.51,1.3541]
[1725270681863,11.48654307,130.61,130.51,1.3541]
[1725270682063,3.8299,130.56,130.51,1.3541]
[1725270682257,3.82810099,130.61,130.51,1.3541]
[1725270682457,38.59,130.63,130.51,1.3541]
[1725270682660,0.95365403,130.62,130.51,1.3541]
[1725270682863,30.9,130.6,130.44,1.4643]
[1725270683061,30.9,130.6,130.45,1.3825]
[1725270683062,0.95365403,130.59,130.45,1.3825]
[1725270683259,0.05838837,130.58,130.55,0.05545387]
[1725270683459,3.8295,130.57,130.55,0.05545387]
[1725270683660,31.9,130.62,130.49,30.9]
[1725270683858,0.05648866,130.57,130.55,0.05644018]
[1725270684367,0.04915082,130.57,130.55,0.05644018]
[1725270685561,3.8298,130.56,130.55,0.05644018]
[1725270686062,0.04915082,130.57,130.55,0.05644018]
[1725270687968,3.85296145,130.56,130.55,0.05644018]
[1725270688363,0.04915082,130.57,130.55,0.05644018]
[1725270688568,7.58085355,130.56,130.55,0.05644018]
[1725270688769,0.04915082,130.57,130.55,0.05644018]
[1725270690668,0.04915082,130.57,130.55,3.88624018]
[1725270690867,1.4388,130.65,130.55,0.05644018]
[1725270691069,1.4388,130.65,130.53,1.4523]
[1725270691272,3.8297,130.57,130.53,1.4523]
[1725270691661,32.205,130.63,130.53,1.4523]
[1725270691967,0.04935189,130.59,130.57,0.05653062]
[1725270692171,25.74,130.6,130.48,25.74]
[1725270692368,25.74,130.6,130.48,29.5719]
[1725270692970,3.8302,130.55,130.48,29.5719]
[1725270693176,0.04926594,130.53,130.5,0.05495237]
[1725270693367,0.04926594,130.53,130.29,11.80872678]
[1725270693368,25.78926594,130.53,130.29,11.80872678]
[1725270693566,29.67585597,130.53,130.39,25.74]
[1725270693868,33.47926594,130.53,130.39,25.74]
[1725270694167,25.74,130.51,130.39,25.74]
[1725270694370,25.74,130.48,130.36,25.74]
[1725270694569,33.43,130.48,130.35,1.4162]
[1725270694771,25.74,130.46,130.35,1.4162]
[1725270694987,25.74,130.46,130.44,0.05179392]
[1725270694988,25.79716752,130.46,130.44,0.05179392]
[1725270695170,3.8349,130.39,130.26,1.3643]
[1725270695472,3.8349,130.39,130.31,25.74]
[1725270695676,7.69581954,130.39,130.31,25.74]
[1725270695869,3.8349,130.39,130.31,25.74]
[1725270696071,3.8345,130.4,130.32,5.3159]
[1725270696279,0.04862824,130.36,130.34,0.05803492]
[1725270696483,0.05512931,130.36,130.34,0.05138664]
[1725270696984,1.0,130.45,130.35,30.93]
[1725270697179,4.8333,130.45,130.37,3.8353]
[1725270697978,0.05252104,130.42,130.4,0.05861578]
[1725270698473,3.8342,130.41,130.4,0.05861578]
[1725270698670,34.71902953,130.43,130.32,1.4791]
[1725270698976,3.8353,130.38,130.3,3.8374]
[1725270699171,30.93,130.43,130.3,1.478]
[1725270699376,3.78615821,130.43,130.31,30.93]
[1725270699582,3.8343,130.41,130.33,3.8363]
[1725270699884,30.93,130.46,130.33,3.8363]
[1725270700074,0.05511746,130.38,130.36,0.05224669]
[1725270700478,2.32175253,130.45,130.36,0.05224669]
[1725270700479,3.92043274,130.43,130.36,0.05224669]
[1725270700782,1.3664,130.45,130.33,30.93]
[1725270701180,1.3664,130.45,130.35,3.8357]
[1725270701181,3.8339,130.42,130.35,3.8357]
[1725270701482,5.16099832,130.45,130.33,30.93]
[1725270701684,0.05463548,130.4,130.37,0.04945251]
[1725270701980,0.05463548,130.4,130.37,0.05829286]
[1725270702683,225.0,130.48,130.37,0.05829286]
[1725270702884,225.0,130.48,130.37,1.39869286]
[1725270703384,225.0,130.48,130.37,1.3404]
[1725270703878,1.4263,130.5,130.41,0.04842927]
[1725270703879,0.04927763,130.44,130.41,0.04842927]
[1725270704084,0.05572654,130.44,130.41,0.05193473]
[1725270706179,30.93,130.44,130.29,2.8231]
[1725270706489,3.8349,130.39,130.32,3.8366]
[1725270706888,3.8352,130.38,130.32,3.8366]
[1725270707188,3.8352,130.38,130.34,0.05669632]
[1725270707189,0.05249476,130.36,130.34,0.05669632]
[1725270709687,0.05249476,130.36,130.34,30.98669632]
[1725270709982,3.8344,130.41,130.37,3.8354]
[1725270710187,1.4805,130.43,130.34,30.93]
[1725270710380,3.8341,130.42,130.37,3.8352]
[1725270710578,225.0,130.47,130.34,30.93]
[1725270710784,0.05874376,130.42,130.36,30.93]
[1725270710982,0.05874376,130.42,130.39,3.8863819]
[1725270711799,0.05874376,130.42,130.39,30.9816819]
[1725270711985,256.2356,130.52,130.39,30.93]
[1725270712177,5.1989,130.51,130.46,3.8326]
[1725270712378,184.27,130.55,130.41,30.93]
[1725270712585,1.3674,130.54,130.41,30.93]
[1725270712791,1.3674,130.54,130.4,3.89055622]
[1725270712792,1.3674,130.54,130.44,30.93]
[1725270713291,0.05838534,130.5,130.48,0.05170644]
[1725270713690,225.0,130.59,130.48,0.05170644]
[1725270713886,30.93,130.6,130.47,1.3784]
[1725270714487,34.68248443,130.6,130.48,3.8321]
[1725270714788,0.05400614,130.55,130.53,0.05125741]
[1725270714992,0.05400614,130.55,130.45,3.8329]
[1725270715191,0.05400614,130.55,130.43,30.93]
[1725270715390,30.93,130.57,130.43,30.93]
[1725270715589,30.93,130.57,130.44,3.8331]
[1725270715785,30.93,130.57,130.43,30.93]
[1725270715987,0.05115515,130.51,130.49,0.05497411]
[1725270716187,30.93,130.57,130.49,0.05656456]
[1725270716188,7.6515077,130.53,130.49,0.05656456]
[1725270716387,0.05343032,130.52,130.5,0.05244221]
[1725270717193,3.88443032,130.52,130.5,0.05244221]
[1725270718397,0.05343032,130.52,130.5,0.05244221]
[1725270718792,3.88443032,130.52,130.5,0.05244221]
[1725270719184,0.05343032,130.52,130.5,0.05244221]
[1725270720601,1.0,130.56,130.5,0.05244221]
[1725270720899,3.75248443,130.6,130.53,3.8307]
[1725270721206,7.58118443,130.6,130.51,30.93]
[1725270721594,1.4125,130.62,130.54,0.05865549]
[1725270721793,0.04859412,130.57,130.54,30.93]
[1725270722092,0.9532034,130.66,130.54,30.93]
[1725270723095,0.05516598,130.61,130.59,0.05301982]
[1725270723289,0.9532494,130.66,130.56,30.93]
[1725270723495,0.05596016,130.61,130.59,0.04856809]
[1725270723692,2.8413,130.67,130.61,3.8283]
[1725270723693,6.6679,130.67,130.61,3.8283]
[1725270723895,2.8413,130.67,130.59,30.97856809]
[1725270725002,2.8413,130.67,130.57,1.3521]
[1725270725400,2.8413,130.67,130.62,0.05673019]
[1725270725401,0.05614192,130.64,130.62,0.05673019]
[1725270726805,0.05614192,130.64,130.55,3.83]
[1725270726997,2.8413,130.67,130.53,30.93]
[1725270727197,1.0,130.66,130.53,30.93]
[1725270727802,0.05895357,130.61,130.58,0.05590428]
[1725270727999,0.05895357,130.61,130.58,0.05847293]
[1725270729101,0.05895357,130.61,130.58,3.88737293]
[1725270729298,0.05895357,130.61,130.58,0.05847293]
[1725270729709,0.05895357,130.61,130.59,3.8287]
[1725270729903,0.05895357,130.61,130.58,0.05847293]
[1725270730203,3.8272,130.65,130.6,3.8286]
[1725270730402,5.2747,130.67,130.59,30.93]
[1725270730603,1.3913,130.71,130.61,30.93]
[1725270731005,0.05274382,130.67,130.65,0.05813341]
[1725270731498,3.94848664,130.67,130.65,0.05813341]
[1725270731704,0.05274382,130.67,130.65,0.05813341]
[1725270734000,3.87934382,130.67,130.65,0.05813341]
[1725270734202,0.05274382,130.67,130.65,0.05813341]
[1725270734702,3.8269,130.66,130.65,0.05813341]
[1725270735907,3.87934382,130.67,130.65,0.05813341]
[1725270736103,0.05274382,130.67,130.65,0.05813341]
[1725270737009,3.8269,130.66,130.65,0.05813341]
[1725270737909,30.93,130.68,130.54,30.93]
[1725270738105,30.93,130.68,130.57,5.2684]
[1725270738710,3.8282,130.62,130.55,1.4043]
[1725270738908,0.04932363,130.6,130.57,0.05846741]
[1725270739113,0.05653355,130.6,130.57,0.05872249]
[1725270739907,3.88533355,130.6,130.57,0.05872249]
[1725270740306,0.05653355,130.6,130.57,0.05872249]
[1725270741815,0.05653355,130.6,130.57,3.88822249]
[1725270742019,0.05653355,130.6,130.57,0.05872249]
[1725270742416,1.0,130.67,130.59,3.8289]
[1725270743209,1.0,130.67,130.58,34.7192]
[1725270743509,0.05559263,130.64,130.61,0.0532881]
[1725270743710,0.05559263,130.64,130.61,3.8813881]
[1725270743915,0.05559263,130.64,130.61,0.0532881]
[1725270744121,0.05559263,130.64,130.61,30.9432881]
[1725270744415,0.05559263,130.64,130.62,3.8278]
[1725270744807,0.05559263,130.64,130.61,34.7713881]
[1725270746010,0.05559263,130.64,130.62,3.828]
[1725270746512,0.05559263,130.64,130.61,34.7714881]
[1725270747318,0.05559263,130.64,130.61,30.9432881]
[1725270747512,3.80301638,130.69,130.62,1.3679]
[1725270747719,1.3913,130.71,130.62,1.3679]
[1725270748119,3.8265,130.68,130.64,3.8274]
[1725270748622,0.05063235,130.67,130.65,0.05006552]
[1725270751115,10.63848096,130.9,130.65,0.05006552]
[1725270751116,225.0,130.81,130.66,30.89]
[1725270751315,3.77564298,130.77,130.72,3.8251]
[1725270751617,160.74,130.9,130.72,30.89]
[1725270751819,0.95146146,130.83,130.78,30.89]
[1725270752126,7.98505479,130.99,130.82,30.89]
[1725270752418,0.950343,130.97,130.85,30.89]
[1725270752621,7.31429099,130.98,130.85,30.89]
[1725270752924,0.04906044,130.91,130.82,30.89]
[1725270753112,0.04906044,130.91,130.84,3.8216]
[1725270753419,7.31429099,130.98,130.9,30.9438329]
[1725270753616,7.31429099,130.98,130.9,30.89]
[1725270753819,4.79090312,130.98,130.96,30.89]
[1725270754020,1.3794,131.1,130.96,30.89]
[1725270754221,38.58,131.17,130.92,30.89]
[1725270754222,7.69,131.22,131.04,30.89]
[1725270754419,7.69,131.22,131.07,30.89]
[1725270754420,0.94884052,131.21,131.07,30.89]
[1725270754614,0.05465249,131.14,131.07,30.89]
[1725270754815,0.05465249,131.14,131.12,0.05475572]
[1725270755023,0.05465249,131.14,131.07,30.89]
[1725270755227,4.89623564,131.21,131.0,30.89]
[1725270755228,1.0,131.21,131.12,30.89]
[1725270755523,1.0,131.21,131.1,30.89]
[1725270755524,1.0,131.21,131.15,30.89]
[1725270756119,3.89012629,131.25,131.15,30.89]
[1725270756315,0.04846998,131.19,131.12,30.89]
[1725270756621,34.76179825,131.27,131.12,30.89]
[1725270756924,0.94739553,131.26,131.09,30.89]
[1725270757125,3.85161281,131.25,131.16,30.89]
[1725270757423,0.05385203,131.21,131.18,0.05378852]
[1725270757819,0.05385203,131.21,131.0,30.89]
[1725270758123,30.89,131.22,131.07,30.89]
[1725270758334,1.0,131.2,131.09,30.89]
[1725270758831,3.8118,131.18,131.09,30.89]
[1725270759128,1.0,131.2,131.07,30.89]
[1725270759522,0.05442576,131.16,131.13,0.04874186]
[1725270759727,0.05442576,131.16,131.01,1.4492]
[1725270759728,1.00200461,131.16,131.01,32.3392]
[1725270759928,3.77420687,131.15,131.04,30.89]
[1725270760227,30.89,131.19,131.04,30.89]
[1725270760418,30.89,131.16,131.04,30.89]
[1725270760622,30.89,131.16,131.01,36.1558]
[1725270760623,3.8138,131.11,131.01,36.1558]
[1725270760816,30.89,131.14,131.09,0.05160028]
[1725270761022,0.05643892,131.11,131.01,34.7066]
[1725270761222,10.5398,131.21,131.1,0.05024795]
[1725270761223,30.89,131.15,131.1,0.05024795]
[1725270761425,0.04862061,131.14,131.01,30.89]
[1725270761727,35.67872005,131.15,130.98,30.89]
[1725270761728,3.814,131.1,130.98,30.89]
[1725270762026,3.78872005,131.15,131.01,30.89]
[1725270762232,1.0,131.13,130.98,30.89]
[1725270762426,0.94811179,131.12,131.01,30.89]
[1725270762618,1.0,131.13,131.01,30.89]
[1725270763121,1.0,131.13,131.07,30.89]
[1725270763624,3.79931323,131.15,131.04,30.89]
[1725270763821,0.05699797,131.08,131.05,0.05679256]
[1725270764022,30.89,131.19,131.04,30.89]
[1725270764223,0.04987251,131.13,131.1,0.04849719]
[1725270764521,0.05826968,131.13,131.1,0.05413926]
[1725270765428,32.2731,131.25,131.12,30.89]
[1725270765621,0.94731377,131.24,131.15,30.89]
[1725270765822,30.89,131.3,131.16,3.812]
[1725270766126,30.89,131.28,131.15,30.89]
[1725270766321,0.94703297,131.27,131.15,30.89]
[1725270766523,30.89,131.3,131.18,30.89]
[1725270766828,0.05746899,131.25,131.23,0.0575091]
[1725270767020,0.05478633,131.25,131.2,3.8111]
[1725270767220,0.05478633,131.25,131.21,0.05867938]
[1725270767733,0.05478633,131.25,131.21,30.94867938]
[1725270768431,3.8078,131.32,131.25,3.8097]
[1725270768628,30.89,131.36,131.23,30.89]
[1725270768839,34.74844343,131.36,131.23,30.89]
[1725270769023,3.8076,131.32,131.23,34.7002]
[1725270769231,34.74844343,131.36,131.23,30.89]
[1725270769529,0.04864852,131.31,131.28,0.05172783]
[1725270769834,0.04864852,131.31,131.28,0.05188747]
[1725270770225,0.04864852,131.31,131.28,3.86048747]
[1725270770429,570.0,131.6,131.29,30.89]
[1725270770630,3.8065,131.37,131.29,30.89]
[1725270770826,3.8065,131.37,131.25,30.89]
[1725270770827,3.89668649,131.37,131.25,30.89]
[1725270771127,1.4498,131.45,131.25,30.89]
[1725270771321,0.05556695,131.36,131.34,0.05206379]
[1725270771529,0.94582247,131.37,131.22,30.89]
[1725270771737,30.89,131.35,131.2,30.89]
[1725270772043,2.39562247,131.34,131.2,30.89]
[1725270772234,2.39562247,131.34,131.25,30.89]
[1725270772425,4.95767425,131.36,131.25,30.89]
[1725270773627,3.8076,131.33,131.25,34.6994]
[1725270773832,4.90049668,131.36,131.25,30.89]
[1725270774237,3.8079,131.31,131.23,30.89]
[1725270774432,4.90049668,131.36,131.29,0.04830689]
[1725270774729,0.05036504,131.3,131.29,0.04830689]
[1725270774942,0.05036504,131.3,131.19,3.71638607]
[1725270774943,1.0,131.36,131.26,30.89]
[1725270775233,183.33,131.42,131.28,30.89]
[1725270775423,0.0570113,131.31,131.28,30.94152762]
[1725270775627,156.19714176,131.42,131.28,30.94152762]
[1725270775827,0.94570684,131.41,131.28,30.89]
[1725270776730,0.0495369,131.36,131.33,0.05428267]
[1725270777036,0.0495369,131.36,131.33,0.04859248]
[1725270777424,30.89,131.36,131.21,30.89]
[1725270777636,0.94570684,131.35,131.21,30.89]
[1725270777933,0.94570684,131.35,131.24,30.89]
[1725270777934,5.72616404,131.35,131.24,30.89]
[1725270778133,0.94570684,131.34,131.24,30.89]
[1725270778322,3.75951389,131.34,131.24,30.89]
[1725270778521,1.0,131.35,131.24,30.89]
[1725270778728,0.9461078,131.34,131.21,30.89]
[1725270778927,0.05713175,131.3,131.28,0.05801884]
[1725270779124,3.8085,131.29,131.28,0.05801884]
[1725270780437,0.05713175,131.3,131.18,30.89]
[1725270780633,0.94658594,131.32,131.18,30.89]
[1725270781135,0.94658594,131.32,131.21,30.89]
[1725270781433,30.89,131.43,131.29,30.89]
[1725270781734,3.8067,131.36,131.29,30.89]
[1725270781923,0.94576354,131.41,131.29,30.89]
[1725270782127,0.94574116,131.4,131.31,30.89]
[1725270782430,3.7640917,131.42,131.34,0.05518906]
[1725270782626,0.94544883,131.41,131.31,30.89]
[1725270782935,0.05175031,131.39,131.37,0.05299512]
[1725270786237,3.8059,131.38,131.37,0.05299512]